bitfinex/quotes_SOLUSD_20240824
["timestamp","ask_amount","ask_price","bid_price","bid_amount"]
[1724472500863,22.61172187,153.56,153.49,1.08019464]
[1724472502076,22.61172187,153.56,153.48,45.0]
[1724472502567,22.61172187,153.56,153.49,1.08019498]
[1724472504669,22.61172187,153.56,153.5,0.12549]
[1724472505176,22.61172187,153.56,153.49,0.25098]
[1724472507579,22.61172187,153.56,153.49,1.33079533]
[1724472512362,22.61172187,153.56,153.49,0.25098]
[1724472512874,22.61172187,153.56,153.49,0.12549]
[1724472513079,22.61172187,153.56,153.48,45.0]
[1724472514063,22.61172187,153.56,153.49,1.08019832]
[1724472517067,22.61172187,153.56,153.5,0.25098]
[1724472517272,22.61172187,153.56,153.5,1.33053835]
[1724472518387,22.61172187,153.56,153.5,0.25098]
[1724472518590,22.61172187,153.56,153.49,0.25098]
[1724472518969,1.62829806,153.55,153.49,0.25098]
[1724472519379,22.61172187,153.56,153.49,0.25098]
[1724472520058,1.62829463,153.55,153.49,0.25098]
[1724472521485,1.62828278,153.55,153.49,0.25098]
[1724472521678,1.62828278,153.55,153.49,0.12549]
[1724472521884,22.61172187,153.56,153.49,0.12549]
[1724472522180,22.61172187,153.56,153.48,45.0]
[1724472524991,22.61172187,153.56,153.49,1.08032397]
[1724472526169,22.61172187,153.56,153.5,0.12549]
[1724472526486,22.61172187,153.56,153.5,1.20523379]
[1724472526805,16.17242187,153.56,153.5,1.20523379]
[1724472527096,16.17242187,153.56,153.51,0.12549]
[1724472527278,16.17242187,153.56,153.51,45.12549]
[1724472527484,16.17242187,153.56,153.52,1.20479693]
[1724472528695,16.17242187,153.56,153.52,0.12549]
[1724472528883,16.17242187,153.56,153.51,45.0]
[1724472534298,16.17242187,153.56,153.52,1.07950771]
[1724472535186,16.17242187,153.56,153.51,45.0]
[1724472537399,16.17242187,153.56,153.52,1.07950778]
[1724472547111,22.1153,153.6,153.53,0.25098]
[1724472547410,22.1153,153.6,153.54,1.07872626]
[1724472547602,22.1153,153.6,153.55,1.07872221]
[1724472547802,15.476,153.6,153.53,45.25098]
[1724472547999,15.476,153.6,153.54,26.1436793]
[1724472548197,15.476,153.6,153.55,45.25098]
[1724472556390,15.476,153.6,153.56,1.07828613]
[1724472557520,15.476,153.6,153.56,1.07828613]
[1724472559399,15.476,153.6,153.55,45.25098]
[1724472560822,15.476,153.6,153.56,1.07828727]
[1724472566601,6.4887,153.63,153.57,0.25098]
[1724472566815,6.4887,153.63,153.57,46.32887854]
[1724472590049,15.4063,153.64,153.57,46.32887854]
[1724472593623,15.4063,153.64,153.57,45.25098]
[1724472601166,1.62741455,153.63,153.57,45.0]
[1724472601352,15.4063,153.64,153.57,45.0]
[1724472601651,17.03382997,153.64,153.57,45.0]
[1724472602326,15.4063,153.64,153.58,1.07813185]
[1724472606661,15.4063,153.64,153.57,45.12549]
[1724472606840,15.4063,153.64,153.58,0.12549]
[1724472612657,1.62751317,153.63,153.57,45.0]
[1724472613051,6.5095,153.62,153.52,47.7068793]
[1724472613365,8.13779651,153.61,153.52,21.5632]
[1724472613564,16.4822,153.59,153.48,70.5318659]
[1724472613873,1.62801226,153.58,153.48,70.5318659]
[1724472614359,18.11026401,153.59,153.48,47.7192793]
[1724472614769,18.11026401,153.59,153.49,20.0]
[1724472615646,18.11026401,153.59,153.5,45.25098]
[1724472615851,18.11026401,153.59,153.51,20.0]
[1724472616166,18.11026401,153.59,153.52,45.0]
[1724472616342,1.62806401,153.58,153.51,20.0]
[1724472616535,1.62820562,153.57,153.48,47.7192793]
[1724472616733,1.62820562,153.57,153.48,21.5756]
[1724472617156,1.62820562,153.57,153.46,26.1436793]
[1724472617366,6.5121,153.56,153.46,26.1436793]
[1724472617545,1.62844692,153.55,153.46,26.1436793]
[1724472617940,1.62844707,153.54,153.46,26.1436793]
[1724472618142,1.62844707,153.54,153.44,47.7192793]
[1724472618875,15.8208,153.53,153.44,47.7192793]
[1724472619042,1.62870097,153.52,153.44,47.7192793]
[1724472619345,15.8208,153.53,153.44,47.7192793]
[1724472619955,15.8208,153.53,153.46,26.1436793]
[1724472620181,15.8208,153.53,153.47,1.08056097]
[1724472620747,15.8208,153.53,153.47,46.08056097]
[1724472622667,21.9286,153.57,153.48,26.3946593]
[1724472622855,21.9286,153.57,153.49,46.08010864]
[1724472624572,1.62843627,153.56,153.49,45.0]
[1724472625551,28.4403,153.57,153.5,1.08033637]
[1724472628478,21.9286,153.57,153.5,1.08033637]
[1724472634665,15.8208,153.57,153.5,27.22401567]
[1724472634869,15.8208,153.57,153.51,45.0]
[1724472635060,15.8208,153.57,153.52,1.07954317]
[1724472639298,15.8208,153.57,153.51,45.12549]
[1724472639470,15.8208,153.57,153.52,0.12549]
[1724472640269,15.8208,153.57,153.51,45.0]
[1724472643805,15.8208,153.57,153.52,1.07956733]
[1724472652010,15.8208,153.57,153.53,26.3946593]
[1724472652011,8.42735865,153.57,153.53,26.3946593]
[1724472652176,52.65152987,153.57,153.54,45.0]
[1724472652386,8.42735865,153.57,153.54,45.0]
[1724472653096,51.74125534,153.56,153.53,26.1436793]
[1724472653492,51.74125534,153.56,153.51,26.1436793]
[1724472653695,51.74125534,153.56,153.52,45.0]
[1724472653901,8.42735865,153.57,153.52,45.0]
[1724472654099,48.42844176,153.57,153.52,45.0]
[1724472654302,40.00108311,153.56,153.52,45.0]
[1724472654812,12.7927,153.61,153.52,45.0]
[1724472654982,15.0203,153.59,153.52,45.0]
[1724472656599,15.0203,153.59,153.53,1.07941564]
[1724472656899,21.8287504,153.63,153.55,26.1436793]
[1724472657215,15.0203,153.63,153.57,26.1436793]
[1724472657509,15.0203,153.63,153.58,1.0784154]
[1724472658603,6.80705938,153.68,153.58,46.0784154]
[1724472658804,6.6145,153.69,153.66,26.1436793]
[1724472659002,6.80441399,153.73,153.66,26.1436793]
[1724472659219,13.1189,153.74,153.66,26.1436793]
[1724472659406,6.6145,153.74,153.67,1.07598912]
[1724472659622,6.6145,153.74,153.68,26.1436793]
[1724472661915,6.6145,153.74,153.66,26.1436793]
[1724472663221,6.6145,153.74,153.67,1.07601721]
[1724472663726,6.6145,153.74,153.66,26.1436793]
[1724472663927,6.6145,153.74,153.64,26.1436793]
[1724472664230,6.6145,153.74,153.65,46.20150334]
[1724472664923,15.52,153.76,153.66,26.1436793]
[1724472665120,15.52,153.76,153.67,46.07567518]
[1724472665311,15.52,153.76,153.68,1.07571307]
[1724472668731,1.20139533,153.75,153.65,0.12549]
[1724472668906,1.20139533,153.75,153.65,65.25098]
[1724472669229,15.52,153.76,153.66,1.07592894]
[1724472672714,15.52,153.76,153.66,27.21960824]
[1724472674233,15.52,153.76,153.67,45.0]
[1724472674521,15.52,153.76,153.68,1.07564309]
[1724472675709,15.52,153.76,153.68,27.21932239]
[1724472677207,15.52,153.76,153.69,45.0]
[1724472677407,15.52,153.76,153.7,1.07520465]
[1724472678300,6.6145,153.77,153.71,1.07501953]
[1724472678507,15.52,153.8,153.71,1.07501953]
[1724472678714,15.52,153.8,153.71,46.07501953]
[1724472680223,20.0,153.79,153.71,46.07501953]
[1724472685641,20.0,153.79,153.7,45.0]
[1724472685845,1.62605192,153.78,153.7,45.0]
[1724472687546,15.52,153.8,153.71,1.07470363]
[1724472688734,15.52,153.8,153.71,21.07470363]
[1724472688916,6.1603,153.81,153.72,71.1436793]
[1724472689122,15.2711,153.84,153.73,1.19931554]
[1724472689449,15.2711,153.84,153.74,1.0738245]
[1724472689636,15.2711,153.84,153.74,46.0738245]
[1724472690220,15.2711,153.84,153.74,72.2175038]
[1724472690425,15.2711,153.84,153.75,0.25098]
[1724472690939,15.2711,153.84,153.75,1.32437758]
[1724472692050,6.1603,153.85,153.76,26.1436793]
[1724472692220,1.62543714,153.84,153.77,45.0]
[1724472692439,6.1603,153.85,153.77,45.0]
[1724472693221,1.62546064,153.84,153.77,45.0]
[1724472694340,1.6254898,153.83,153.75,0.25098]
[1724472694524,1.62560884,153.82,153.75,45.0]
[1724472695539,1.62560854,153.84,153.75,45.0]
[1724472696719,1.62560854,153.84,153.74,15.7219]
[1724472696720,21.62560854,153.84,153.74,15.7219]
[1724472696941,15.52208,153.83,153.74,16.79625628]
[1724472697149,15.2711,153.83,153.74,16.79591293]
[1724472697532,15.2711,153.83,153.72,26.1436793]
[1724472697533,1.62588896,153.82,153.72,26.1436793]
[1724472697730,6.5019,153.81,153.7,41.8655793]
[1724472697930,6.5019,153.81,153.71,1.07459725]
[1724472698337,6.5019,153.81,153.71,21.07459725]
[1724472702737,52.7702693,153.82,153.71,21.07459725]
[1724472707926,26.62659,153.82,153.71,21.07459725]
[1724472708541,26.62659,153.82,153.71,20.0]
[1724472711025,26.62659,153.82,153.72,1.0745783]
[1724472718408,8.12004001,153.81,153.71,20.0]
[1724472725339,6.494,153.81,153.72,1.07466279]
[1724472735473,1.62607726,153.8,153.72,26.1436793]
[1724472735776,1.62607726,153.8,153.73,45.0]
[1724472736149,6.494,153.81,153.74,1.07410171]
[1724472736349,1.625841,153.8,153.73,45.0]
[1724472736578,1.62599523,153.79,153.72,45.0]
[1724472738057,6.494,153.81,153.72,45.0]
[1724472738246,6.494,153.81,153.73,1.07436878]
[1724472739284,6.494,153.81,153.72,45.0]
[1724472739965,1.62595913,153.8,153.72,45.0]
[1724472740359,1.62595898,153.79,153.72,45.0]
[1724472743174,6.494,153.81,153.73,1.07437104]
[1724472744854,6.494,153.81,153.72,45.0]
[1724472745654,1.62596053,153.8,153.72,45.0]
[1724472746288,6.494,153.81,153.72,45.0]
[1724472746465,6.494,153.81,153.73,1.07437523]
[1724472746663,6.494,153.81,153.72,45.0]
[1724472747485,1.62595993,153.8,153.72,45.0]
[1724472747666,1.6259601,153.79,153.72,45.0]
[1724472748757,6.494,153.81,153.72,45.0]
[1724472748957,6.494,153.81,153.73,27.21805099]
[1724472749173,1.62594503,153.8,153.73,26.1436793]
[1724472751057,1.62594814,153.79,153.73,26.1436793]
[1724472751789,8.11994779,153.81,153.74,45.0]
[1724472756173,8.11994779,153.81,153.73,26.1436793]
[1724472764604,6.494,153.81,153.73,26.1436793]
[1724472765095,1.6259434,153.8,153.73,26.1436793]
[1724472765472,1.62594364,153.79,153.73,26.1436793]
[1724472767011,17.83804364,153.79,153.73,26.1436793]
[1724472769002,16.2121,153.79,153.74,1.07432501]
[1724472769383,16.2121,153.79,153.73,26.1436793]
[1724472769594,16.2121,153.79,153.74,1.07407652]
[1724472771700,16.2121,153.79,153.75,26.1436793]
[1724472772483,6.494,153.81,153.75,26.1436793]
[1724472781217,6.494,153.81,153.73,26.1436793]
[1724472781429,1.62578788,153.8,153.74,45.0]
[1724472781656,1.62578788,153.8,153.73,26.1436793]
[1724472791943,6.494,153.81,153.73,26.1436793]
[1724472792127,6.494,153.81,153.74,1.07406738]
[1724472796323,6.494,153.81,153.74,46.07406738]
[1724472796502,16.2121,153.83,153.75,57.13700054]
[1724472796698,16.2121,153.83,153.76,46.07335838]
[1724472796899,16.2121,153.83,153.77,1.07334639]
[1724472797218,16.2121,153.83,153.77,27.21702569]
[1724472797406,16.2121,153.83,153.78,45.0]
[1724472797607,16.2121,153.83,153.79,1.07291759]
[1724472799619,16.2121,153.83,153.78,45.0]
[1724472800732,6.79769044,153.89,153.81,26.1436793]
[1724472800936,16.4028,153.91,153.83,26.1436793]
[1724472802739,0.8220523,153.93,153.88,26.1436793]
[1724472803112,0.8220523,153.93,153.89,1.07060522]
[1724472803632,0.8220523,153.93,153.88,26.1436793]
[1724472804006,0.8220523,153.93,153.86,26.1436793]
[1724472808807,0.8220523,153.93,153.88,26.1436793]
[1724472813143,0.8220523,153.93,153.9,26.1436793]
[1724472813447,0.8220523,153.93,153.91,1.06999184]
[1724472814150,0.8220523,153.93,153.92,26.1436793]
[1724472814446,0.8220523,153.93,153.89,27.2134597]
[1724472814760,0.8220523,153.93,153.89,26.1436793]
[1724472816820,0.8220523,153.93,153.9,1.06998273]
[1724472818043,0.8220523,153.93,153.92,15.5061]
[1724472818252,0.8220523,153.93,153.92,60.5061]
[1724472818755,0.8220523,153.93,153.91,26.2691693]
[1724472818922,0.8220523,153.93,153.91,26.1436793]
[1724472819249,0.8220523,153.93,153.92,1.06975184]
[1724472819641,0.8220523,153.93,153.89,27.21311145]
[1724472819840,0.8220523,153.93,153.9,1.06989904]
[1724472822827,0.8220523,153.93,153.85,33.84296639]
[1724472824049,0.8220523,153.93,153.87,26.1436793]
[1724472824661,0.8220523,153.93,153.88,0.12549]
[1724472824827,0.8220523,153.93,153.88,45.12549]
[1724472828335,0.8220523,153.93,153.89,1.07009666]
[1724472829669,0.8220523,153.93,153.88,45.12549]
[1724472832563,0.8220523,153.93,153.89,0.12549]
[1724472837565,0.8220523,153.93,153.89,1.19520757]
[1724472838146,0.8220523,153.93,153.9,0.12549]
[1724472838366,0.8220523,153.93,153.9,46.19488106]
[1724472840374,0.8220523,153.93,153.91,22.003]
[1724472840539,0.8220523,153.93,153.92,46.31982732]
[1724472841353,0.8220523,153.93,153.92,45.25098]
[1724472843371,0.8220523,153.93,153.89,20.0]
[1724472843670,0.8220523,153.93,153.88,20.0]
[1724472844665,0.8220523,153.93,153.89,0.12549]
[1724472844844,0.8220523,153.93,153.89,0.25098]
[1724472845055,0.8220523,153.93,153.89,45.25098]
[1724472845263,0.8220523,153.93,153.9,20.0]
[1724472845563,0.8220523,153.93,153.91,45.12549]
[1724472845770,0.8220523,153.93,153.91,45.0]
[1724472845946,0.8220523,153.93,153.9,20.0]
[1724472846265,0.8220523,153.93,153.89,0.12549]
[1724472846469,0.8220523,153.93,153.89,45.25098]
[1724472846770,0.8220523,153.93,153.9,20.0]
[1724472846966,0.8220523,153.93,153.91,45.0]
[1724472850246,0.8220523,153.93,153.87,48.1466793]
[1724472850473,0.8220523,153.93,153.88,24.78427329]
[1724472850663,0.8220523,153.93,153.89,4.78427329]
[1724472853278,0.8220523,153.93,153.9,4.78427329]
[1724472853448,0.8220523,153.93,153.88,20.0]
[1724472853651,0.8220523,153.93,153.89,4.78255935]
[1724472853870,0.8220523,153.93,153.9,4.78254939]
[1724472854064,0.8220523,153.93,153.88,20.0]
[1724472854375,0.8220523,153.93,153.89,5.85266518]
[1724472854570,0.8220523,153.93,153.9,5.85267444]
[1724472854789,0.8220523,153.93,153.9,1.07005209]
[1724472855092,0.8220523,153.93,153.91,4.78232873]
[1724472855548,0.8220523,153.93,153.9,4.78232873]
[1724472855757,0.8220523,153.93,153.91,49.78232873]
[1724472855955,0.8220523,153.93,153.91,45.0]
[1724472856154,0.8220523,153.93,153.9,45.0]
[1724472856493,0.8220523,153.93,153.91,5.85191908]
[1724472856654,0.8220523,153.93,153.91,4.78235088]
[1724472857085,0.8220523,153.93,153.9,45.0]
[1724472857387,0.8220523,153.93,153.91,4.78234825]
[1724472859265,0.8220523,153.93,153.9,45.0]
[1724472859468,0.8220523,153.93,153.91,4.90783272]
[1724472859680,0.8220523,153.93,153.91,0.12549]
[1724472863195,0.8220523,153.93,153.91,4.90824171]
[1724472863410,0.8220523,153.93,153.91,4.78275171]
[1724472864104,0.8220523,153.93,153.92,0.25098]
[1724472864285,0.8220523,153.93,153.92,49.90623056]
[1724472864673,0.8220523,153.93,153.92,4.78074056]
[1724472864882,0.8220523,153.93,153.92,45.0]
[1724472865075,0.8220523,153.93,153.92,4.78074056]
[1724472865277,0.8220523,153.93,153.9,4.78074056]
[1724472865496,0.8220523,153.93,153.91,49.78074056]
[1724472865703,0.8220523,153.93,153.92,4.78074056]
[1724472866000,0.8220523,153.93,153.88,20.0]
[1724472866202,0.8220523,153.93,153.89,5.85232329]
[1724472866401,0.8220523,153.93,153.9,5.85230533]
[1724472866605,0.8220523,153.93,153.91,4.78238405]
[1724472866904,0.8220523,153.93,153.9,1.06992128]
[1724472867107,0.8220523,153.93,153.91,4.78237522]
[1724472867597,0.8220523,153.93,153.89,4.78237522]
[1724472867800,0.8220523,153.93,153.9,5.85230573]
[1724472868019,0.8220523,153.93,153.91,4.78237522]
[1724472868690,0.8220523,153.93,153.88,20.0]
[1724472868893,0.8220523,153.93,153.89,49.78286355]
[1724472869092,0.8220523,153.93,153.9,4.78286355]
[1724472869394,0.8220523,153.93,153.91,4.78286355]
[1724472869605,0.8220523,153.93,153.9,4.78286355]
[1724472869832,0.8220523,153.93,153.91,4.78286355]
[1724472870016,0.8220523,153.93,153.9,4.78286355]
[1724472870312,0.8220523,153.93,153.91,4.78286355]
[1724472870599,0.8220523,153.93,153.9,4.7830528]
[1724472870808,0.8220523,153.93,153.91,4.7830528]
[1724472870991,0.8220523,153.93,153.9,4.7830528]
[1724472871191,0.8220523,153.93,153.91,4.7830528]
[1724472871414,0.8220523,153.93,153.9,4.7830528]
[1724472871589,0.8220523,153.93,153.91,4.7830528]
[1724472871787,0.8220523,153.93,153.9,4.7830528]
[1724472871986,0.8220523,153.93,153.91,4.7830528]
[1724472872191,0.8220523,153.93,153.92,5.85298514]
[1724472872410,0.8220523,153.93,153.92,1.06993234]
[1724472872614,0.8220523,153.93,153.91,49.7830528]
[1724472872813,0.8220523,153.93,153.92,4.7830528]
[1724472872989,0.8220523,153.93,153.91,4.7830528]
[1724472873315,0.8220523,153.93,153.92,4.78205659]
[1724472873619,0.8220523,153.93,153.91,9.56415952]
[1724472873915,0.8220523,153.93,153.91,9.56420586]
[1724472874084,0.8220523,153.93,153.92,45.0]
[1724472874589,0.8220523,153.93,153.88,20.0]
[1724472874782,0.8220523,153.93,153.89,45.25098]
[1724472874983,0.8220523,153.93,153.9,1.0696914]
[1724472875185,0.8220523,153.93,153.89,45.25098]
[1724472876197,0.8220523,153.93,153.9,1.06973137]
[1724472877410,0.8220523,153.93,153.89,45.25098]
[1724472886506,0.8220523,153.93,153.89,0.25098]
[1724472896230,0.8220523,153.93,153.89,1.3203863]
[1724472896410,0.8220523,153.93,153.89,1.0694063]
[1724472897118,0.8220523,153.93,153.89,1.06975648]
[1724472900017,0.8220523,153.93,153.9,1.06988041]
[1724472900223,0.8220523,153.93,153.89,0.12549]
[1724472900422,0.8220523,153.93,153.89,0.25098]
[1724472900617,0.8220523,153.93,153.88,45.0]
[1724472903109,0.8220523,153.93,153.83,18.43094144]
[1724472903110,16.0106523,153.93,153.83,8.46116739]
[1724472903441,40.66207936,153.92,153.8,26.1436793]
[1724472903936,41.3322793,153.9,153.79,8.46116739]
[1724472904509,41.3322793,153.9,153.8,1.0717017]
[1724472904733,41.3322793,153.9,153.8,9.53286909]
[1724472905328,41.3322793,153.9,153.81,20.0]
[1724472905531,47.8299793,153.9,153.81,20.0]
[1724472906521,47.8299793,153.9,153.82,46.07170323]
[1724472906720,41.3322793,153.9,153.82,46.07170323]
[1724472907037,42.95712608,153.9,153.82,45.0]
[1724472907375,42.95714444,153.9,153.82,45.0]
[1724472908088,42.95714444,153.9,153.83,1.07170762]
[1724472908089,15.1886,153.9,153.83,1.07170762]
[1724472910118,15.1886,153.9,153.82,45.0]
[1724472911157,15.1886,153.9,153.83,1.32247169]
[1724472911343,15.1886,153.9,153.84,26.1436793]
[1724472911523,15.1886,153.9,153.85,45.0]
[1724472912424,15.1886,153.9,153.86,1.07098525]
[1724472913330,15.1886,153.9,153.85,1.07097842]
[1724472928326,15.1886,153.9,153.84,26.1436793]
[1724472935961,15.1886,153.9,153.83,0.25098]
[1724472936145,15.1886,153.9,153.83,49.79303234]
[1724472936338,15.1886,153.9,153.83,45.0]
[1724472936738,1.62474508,153.89,153.8,34.60484669]
[1724472936958,6.4996,153.86,153.78,26.1436793]
[1724472937262,17.66004697,153.85,153.79,4.79635648]
[1724472937444,17.66004697,153.85,153.77,4.79635648]
[1724472938246,16.0349,153.85,153.77,24.79635648]
[1724472938456,16.0349,153.85,153.78,4.79693807]
[1724472939236,17.66009994,153.85,153.78,4.79693807]
[1724472939667,24.15999994,153.85,153.78,4.79693807]
[1724472939850,24.15999994,153.85,153.77,4.79693807]
[1724472940535,24.15999994,153.85,153.77,4.79703355]
[1724472941035,17.66009994,153.85,153.77,4.79703355]
[1724472941765,17.66009994,153.85,153.76,26.2691693]
[1724472941966,17.66009994,153.85,153.77,49.92290593]
[1724472942161,17.66009994,153.85,153.78,4.79741593]
[1724472944165,16.0349,153.85,153.78,30.94109523]
[1724472944340,16.0349,153.85,153.8,26.1436793]
[1724472944662,16.0349,153.85,153.81,1.07225534]
[1724472944961,16.0349,153.85,153.8,26.1436793]
[1724472946271,16.0349,153.85,153.79,45.0]
[1724472946472,16.0349,153.85,153.8,4.79516663]
[1724472946771,16.0349,153.85,153.8,5.86780667]
[1724472948275,16.0349,153.85,153.8,4.79516663]
[1724472948571,16.0349,153.85,153.8,4.79526364]
[1724472949166,16.0349,153.85,153.81,4.79526364]
[1724472949462,16.0349,153.85,153.8,4.79526364]
[1724472949675,16.0349,153.85,153.81,4.79526364]
[1724472949854,16.0349,153.85,153.8,4.79526364]
[1724472951784,16.0349,153.85,153.79,45.0]
[1724472951970,16.0349,153.85,153.8,4.79631614]
[1724472952175,17.66010445,153.85,153.8,4.79631614]
[1724472952672,17.66010445,153.85,153.78,26.1436793]
[1724472952846,24.15990445,153.85,153.77,0.12549]
[1724472953170,24.15990445,153.85,153.77,45.12549]
[1724472953364,17.66010445,153.85,153.77,45.12549]
[1724472954663,16.0349,153.85,153.78,1.0728821]
[1724472954971,17.66023737,153.85,153.77,45.12549]
[1724472962072,24.16013737,153.85,153.77,45.0]
[1724472963269,6.5002,153.84,153.76,26.1436793]
[1724472963474,7.70485733,153.83,153.76,26.1436793]
[1724472963697,1.62555785,153.82,153.76,26.1436793]
[1724472963894,14.20555652,153.83,153.76,26.1436793]
[1724472964069,14.20555652,153.83,153.74,34.60484669]
[1724472964392,1.62559874,153.82,153.74,34.60484669]
[1724472965005,1.62559874,153.82,153.75,45.0]
[1724472969305,15.4503,153.81,153.73,0.12549]
[1724472969490,1.62573219,153.8,153.73,65.25098]
[1724472970496,1.62588379,153.79,153.72,26.1436793]
[1724472970690,8.12778,153.8,153.72,26.1436793]
[1724472972485,1.62588,153.8,153.72,26.1436793]
[1724472974689,6.5024,153.79,153.7,50.58204669]
[1724472975018,8.12788,153.8,153.71,65.25098]
[1724472975988,1.62588,153.8,153.71,65.25098]
[1724472976687,21.9518,153.81,153.72,1.07417592]
[1724472977987,6.5024,153.79,153.7,26.1436793]
[1724472978190,6.5024,153.79,153.68,32.87860905]
[1724472978191,1.62609928,153.78,153.68,32.87860905]
[1724472978378,1.62609928,153.78,153.69,20.0]
[1724472979200,1.62609928,153.78,153.7,45.0]
[1724472979812,1.62609928,153.78,153.7,71.1436793]
[1724472981488,8.12889928,153.78,153.7,45.0]
[1724472982461,15.8195,153.77,153.7,45.0]
[1724472982587,1.62613432,153.76,153.7,45.0]
[1724472983499,17.44563499,153.77,153.7,45.0]
[1724472983704,1.62613303,153.76,153.69,20.0]
[1724472985994,15.8195,153.77,153.69,20.0]
[1724472986413,6.4902,153.75,153.68,26.1436793]
[1724472986610,1.62634171,153.74,153.66,41.8941793]
[1724472986905,1.62634171,153.74,153.67,45.25098]
[1724472987438,1.62652315,153.73,153.64,26.1436793]
[1724472987724,10.5259,153.72,153.63,26.1436793]
[1724472988018,1.62682779,153.71,153.63,26.1436793]
[1724472988216,10.5259,153.72,153.64,1.0764479]
[1724472989020,10.5259,153.72,153.64,21.0764479]
[1724472989216,1.62682349,153.71,153.63,26.1436793]
[1724472989386,1.62682772,153.7,153.64,0.12549]
[1724472990098,1.62682772,153.7,153.63,26.1436793]
[1724472990501,1.62688886,153.71,153.63,26.1436793]
[1724472990700,8.11706024,153.7,153.64,20.0]
[1724472991018,8.11706024,153.7,153.61,26.1436793]
[1724472991217,8.11706024,153.7,153.62,65.25098]
[1724472991607,1.62686007,153.69,153.62,65.25098]
[1724472993705,6.4902,153.7,153.62,65.25098]
[1724472993913,8.11705829,153.7,153.62,65.25098]
[1724472995027,6.4902,153.7,153.62,65.25098]
[1724472995631,8.11705759,153.7,153.62,65.25098]
[1724472996140,8.11705759,153.7,153.62,65.12549]
[1724473004458,6.4902,153.7,153.63,26.1436793]
[1724473004628,10.5259,153.72,153.69,26.1436793]
[1724473004823,15.0968,153.76,153.7,1.0755099]
[1724473005657,15.0968,153.76,153.71,26.1436793]
[1724473009151,15.0968,153.76,153.69,26.1436793]
[1724473009342,15.0968,153.76,153.7,1.20039294]
[1724473010229,15.0968,153.76,153.71,1.07481963]
[1724473011257,15.0968,153.76,153.7,1.20039882]
[1724473015348,15.0968,153.76,153.7,0.12549]
[1724473015656,16.72305464,153.76,153.69,26.1436793]
[1724473016665,15.0968,153.76,153.69,26.1436793]
[1724473017163,15.0968,153.76,153.7,0.12549]
[1724473017164,16.72303358,153.76,153.7,0.12549]
[1724473017360,16.72303358,153.76,153.67,26.1436793]
[1724473017539,16.72303358,153.76,153.68,65.12549]
[1724473022663,15.0968,153.76,153.68,65.12549]
[1724473023038,15.0968,153.76,153.69,1.07520423]
[1724473023240,15.0968,153.76,153.71,26.1436793]
[1724473023460,15.0968,153.76,153.72,1.07456457]
[1724473024543,6.5571,153.78,153.73,0.12549]
[1724473024767,6.5571,153.78,153.73,1.19970013]
[1724473024943,6.5571,153.78,153.73,0.12549]
[1724473025153,16.3456,153.8,153.73,26.3946593]
[1724473025353,16.3456,153.8,153.74,45.0]
[1724473025553,16.3456,153.8,153.75,0.12549]
[1724473026056,16.3456,153.8,153.71,26.1436793]
[1724473026262,17.97144283,153.8,153.72,45.25098]
[1724473026564,16.3456,153.8,153.72,46.32507339]
[1724473026774,16.3456,153.8,153.73,26.1436793]
[1724473026948,16.3456,153.8,153.74,0.12549]
[1724473027867,1.62583007,153.79,153.72,45.0]
[1724473028067,6.5027,153.79,153.69,50.23800225]
[1724473028270,1.62604901,153.78,153.7,65.25098]
[1724473028442,1.62604901,153.78,153.7,65.12549]
[1724473028910,8.14654901,153.78,153.7,65.12549]
[1724473030158,6.5205,153.78,153.71,1.07472248]
[1724473030456,6.5205,153.78,153.72,0.12549]
[1724473034182,8.14653443,153.78,153.71,0.12549]
[1724473035060,6.5205,153.78,153.71,0.12549]
[1724473035385,6.5205,153.78,153.71,1.20011537]
[1724473035961,6.5205,153.78,153.71,0.12549]
[1724473037056,1.626052,153.77,153.7,45.0]
[1724473038488,6.5205,153.78,153.71,1.0748801]
[1724473046711,6.5205,153.78,153.71,5.87706098]
[1724473047582,6.5205,153.78,153.72,0.12549]
[1724473047805,6.5205,153.78,153.72,45.25098]
[1724473050020,6.5205,153.78,153.73,1.0741388]
[1724473052007,6.5205,153.78,153.72,45.25098]
[1724473052213,6.5205,153.78,153.73,4.80414519]
[1724473052382,6.5205,153.78,153.72,45.25098]
[1724473052592,6.5205,153.78,153.73,4.80414519]
[1724473052779,6.5205,153.78,153.72,45.25098]